[Event "Almaty Open 2019"]
[Site "Almaty"]
[Date "2019.10.14"]
[Round "9.10"]
[White "Dauletova, Gulmira"]
[Black "Tologontegin, Semetey"]
[Result "*"]
[ECO "C00"]
[WhiteElo "2259"]
[BlackElo "2384"]
[Annotator "NA RC"]
[PlyCount "77"]
[EventDate "2019.10.07"]
[EventType "swiss"]
[EventCountry "KAZ"]
[SourceTitle "playchess.com"]
[Source "ChessBase"]
[SourceQuality "1"]
[TimeControl "5400+30"]

1. e4 {[%emt 0:00:00]} e6 {[%emt 0:15:33]} 2. d4 {[%emt 0:00:00]} b6 {[%emt 0:00:06]} 3. Bd3 {[%emt 0:00:21]} Bb7 {[%emt 0:00:12]} 4. Nf3 {[%emt 0:00:55]} d6 {[%emt 0:00:26]} 5. c4 {[%emt 0:01:11]} Nd7 {[%emt 0:00:18]} 6. Nc3 {[%emt 0:00:46]} g6 {[%emt 0:00:18]} 7. O-O {[%emt 0:03:35]} Bg7 {[%emt 0:00:16]} 8. Be3 {[%emt 0:05:00]} Ne7 {[%emt 0:00:25]} 9. Rc1 {[%emt 0:03:06]} h6 {[%emt 0:01:41]} 10. b4 {[%emt 0:06:14]} O-O {[%emt 0:44:34]} 11. d5 {[%emt 0:01:22]} c5 {[%emt 0:02:21]} 12. Nb5 {[%emt 0:15:18]} Nc8 {[%emt 0:06:23]} 13. bxc5 {[%emt 0:16:57]} Nxc5 {[%emt 0:03:59]} 14. Bb1 {[%emt 0:02:54]} e5 {[%emt 0:01:42]} 15. Nd2 {[%emt 0:04:38]} a6 {[%emt 0:00:18]} 16. Nc3 {[%emt 0:00:17]} Ne7 {[%emt 0:05:25]} 17. Nb3 {[%emt 0:00:04]} f5 {[%emt 0:02:37]} 18. Nxc5 {[%emt 0:01:48]} bxc5 {[%emt 0:00:09]} 19. exf5 {[%emt 0:01:03]} Nxf5 {[%emt 0:00:27]} 20. Ne4 {[%emt 0:02:45]} Bc8 {[%emt 0:00:51]} 21. Qd2 {[%emt 0:01:16]} Rb8 {[%emt 0:02:21]} 22. Bd3 {[%emt 0:00:29]} Bd7 {[%emt 0:00:32]} 23. Rb1 {[%emt 0:00:23]} Qc7 {[%emt 0:00:50]} 24. Ng3 {[%emt 0:04:11]} Kh7 {[%emt 0:00:35]} 25. Rxb8 {[%emt 0:00:52]} Rxb8 {[%emt 0:00:45]} 26. Qc2 {[%emt 0:01:11]} Qc8 {[%emt 0:01:46]} 27. Rb1 {[%emt 0:00:27]} Rxb1+ {[%emt 0:00:06]} 28. Qxb1 {[%emt 0:00:02]} Bf6 {[%emt 0:01:31]} 29. Bd2 {[%emt 0:02:15]} Kg7 {[%emt 0:06:12]} 30. Qb6 {[%emt 0:04:23]} Nxg3 {[%emt 0:00:41]} 31. hxg3 {[%emt 0:00:02]} Be7 {[%emt 0:00:46]} 32. f4 {[%emt 0:01:48]} Bf5 {[%emt 0:00:57]} 33. Bf1 {[%emt 0:05:43]} e4 {[%emt 0:00:04]} 34. Bc3+ {[%emt 0:01:29]} Kf7 {[%emt 0:00:18]} 35. Kf2 {[%emt 0:00:28]} h5 {[%emt 0:01:16]} 36. Qa7 {[%emt 0:05:15]} Ke8 {[%emt 0:00:37]} 37. Qb6 {[%emt 0:04:52]} Kf7 {[%emt 0:00:06]} 38. Qa7 {[%emt 0:01:19]} Ke8 {[%emt 0:00:01]} 39. Qb6 {[%emt 0:01:16]} *

[Event "Almaty Open 2019"]
[Site "Almaty"]
[Date "2019.10.14"]
[Round "9.11"]
[White "Moisseyenko, Ilya"]
[Black "Mezentsev, Ivan"]
[Result "0-1"]
[ECO "D37"]
[WhiteElo "2264"]
[BlackElo "2351"]
[Annotator "NA RC"]
[PlyCount "112"]
[EventDate "2019.10.07"]
[EventType "swiss"]
[EventCountry "KAZ"]
[SourceTitle "playchess.com"]
[Source "ChessBase"]
[SourceQuality "1"]
[TimeControl "5400+30"]

1. d4 {[%emt 0:00:00]} Nf6 {[%emt 0:14:28]} 2. Nf3 {[%emt 0:00:00]} e6 {[%emt 0:01:00]} 3. c4 {[%emt 0:00:00]} d5 {[%emt 0:01:13]} 4. Nc3 {[%emt 0:00:00]} a6 {[%emt 0:00:50]} 5. cxd5 {[%emt 0:00:03]} exd5 {[%emt 0:00:05]} 6. Bg5 {[%emt 0:00:05]} Be6 {[%emt 0:01:29]} 7. e3 {[%emt 0:00:08]} Bd6 {[%emt 0:03:46]} 8. Bd3 {[%emt 0:00:05]} Nbd7 {[%emt 0:00:55]} 9. O-O {[%emt 0:00:07]} c6 {[%emt 0:02:14]} 10. a3 {[%emt 0:01:47]} Qb8 {[%emt 0:09:06]} 11. Bh4 {[%emt 0:01:04]} O-O {[%emt 0:01:13]} 12. Bg3 {[%emt 0:00:46]} Bxg3 {[%emt 0:01:30]} 13. hxg3 {[%emt 0:00:09]} Qd6 {[%emt 0:00:26]} 14. Qc2 {[%emt 0:01:42]} Bg4 {[%emt 0:03:24]} 15. Rac1 {[%emt 0:02:56]} Rfe8 {[%emt 0:01:06]} 16. b4 {[%emt 0:06:28]} a5 {[%emt 0:04:22]} 17. Rb1 {[%emt 0:17:19]} b5 {[%emt 0:10:36]} 18. bxa5 {[%emt 0:24:07]} Qxa3 {[%emt 0:06:22]} 19. Ra1 {[%emt 0:00:09]} Qd6 {[%emt 0:00:13]} 20. a6 {[%emt 0:07:49]} Reb8 {[%emt 0:02:59]} 21. e4 {[%emt 0:00:36]} dxe4 {[%emt 0:05:27]} 22. Nxe4 {[%emt 0:00:45]} Qd5 {[%emt 0:01:57]} 23. Ne5 {[%emt 0:02:12]} Rb6 {[%emt 0:03:28]} 24. Rfc1 {[%emt 0:13:26]} Nxe5 {[%emt 0:02:52]} 25. Nxf6+ {[%emt 0:01:25]} gxf6 {[%emt 0:00:05]} 26. dxe5 {[%emt 0:02:47]} Qxe5 {[%emt 0:01:59]} 27. Bxh7+ {[%emt 0:01:05]} Kg7 {[%emt 0:00:18]} 28. Be4 {[%emt 0:00:02]} Bd7 {[%emt 0:03:40]} 29. a7 {[%emt 0:02:14]} Rb7 {[%emt 0:04:43]} 30. Bxc6 {[%emt 0:01:52]} Bxc6 {[%emt 0:00:29]} 31. Qxc6 {[%emt 0:00:02]} Raxa7 {[%emt 0:00:14]} 32. Rxa7 {[%emt 0:04:06]} Rxa7 {[%emt 0:00:03]} 33. Kh2 {[%emt 0:02:56]} Qh5+ {[%emt 0:03:46]} 34. Kg1 {[%emt 0:00:01]} Qe5 {[%emt 0:00:07]} 35. Kh2 {[%emt 0:05:28]} Qh5+ {[%emt 0:00:25]} 36. Kg1 {[%emt 0:00:01]} Qe5 {[%emt 0:00:05]} 37. Qf3 {[%emt 0:01:19]} Qg5 {[%emt 0:03:53]} 38. Rb1 {[%emt 0:01:04]} Rc7 {[%emt 0:00:16]} 39. Qa3 {[%emt 0:02:43]} Rc2 {[%emt 0:01:28]} 40. f4 {[%emt 0:00:31]} Qd5 {[%emt 0:00:53]} 41. Qf3 {[%emt 0:00:03]} Qc5+ {[%emt 0:02:41]} 42. Kh2 {[%emt 0:00:07]} Rc1 {[%emt 0:01:51]} 43. Qg4+ {[%emt 0:00:52]} Kf8 {[%emt 0:00:15]} 44. Rxc1 {[%emt 0:00:13]} Qxc1 {[%emt 0:00:05]} 45. Qd7 {[%emt 0:00:54]} Qc5 {[%emt 0:00:47]} 46. g4 {[%emt 0:00:27]} b4 {[%emt 0:00:07]} 47. g5 {[%emt 0:00:16]} fxg5 {[%emt 0:00:21]} 48. Qd8+ {[%emt 0:01:06]} Kg7 {[%emt 0:00:05]} 49. fxg5 {[%emt 0:00:03]} Qe5+ {[%emt 0:00:12]} 50. Kh3 {[%emt 0:00:15]} b3 {[%emt 0:00:14]} 51. g4 {[%emt 0:01:01]} b2 {[%emt 0:00:51]} 52. Qb6 {[%emt 0:00:02]} Qc3+ {[%emt 0:00:22]} 53. Kg2 {[%emt 0:00:39]} Qc2+ {[%emt 0:00:18]} 54. Kg3 {[%emt 0:00:07]} Qd3+ {[%emt 0:00:16]} 55. Kh4 {[%emt 0:00:50]} b1=Q {[%emt 0:00:08]} 56. Qf6+ {[%emt 0:00:52]} Kg8 {[%emt 0:00:06]} 0-1

[Event "Almaty Open 2019"]
[Site "Almaty"]
[Date "2019.10.14"]
[Round "9.12"]
[White "Nukin, Tolegen"]
[Black "Isanzhulov, Arystan"]
[Result "0-1"]
[ECO "C00"]
[WhiteElo "2104"]
[BlackElo "2305"]
[Annotator "NA RC"]
[PlyCount "96"]
[EventDate "2019.10.07"]
[EventType "swiss"]
[EventCountry "KAZ"]
[SourceTitle "playchess.com"]
[Source "ChessBase"]
[SourceQuality "1"]
[TimeControl "5400+30"]

1. e4 {[%emt 0:07:15]} e6 {[%emt 0:09:10]} 2. d4 {[%emt 0:19:06]} b6 {[%emt 0:00:07]} 3. Bd3 {[%emt 0:01:16]} Bb7 {[%emt 0:00:05]} 4. Be3 {[%emt 0:00:44]} d6 {[%emt 0:07:26]} 5. Ne2 {[%emt 0:03:49]} g6 {[%emt 0:01:32]} 6. c4 {[%emt 0:01:43]} Bg7 {[%emt 0:00:14]} 7. Nbc3 {[%emt 0:00:27]} Nc6 {[%emt 0:13:33]} 8. Bc2 {[%emt 0:05:05]} Nf6 {[%emt 0:07:23]} 9. f3 {[%emt 0:02:05]} O-O {[%emt 0:06:31]} 10. Qd2 {[%emt 0:03:57]} Ba6 {[%emt 0:06:30]} 11. b3 {[%emt 0:03:06]} Nb4 {[%emt 0:01:02]} 12. Bb1 {[%emt 0:02:17]} c5 {[%emt 0:01:25]} 13. O-O {[%emt 0:13:23]} Qe7 {[%emt 0:05:44]} 14. Rd1 {[%emt 0:07:33]} Rfd8 {[%emt 0:00:10]} 15. Bg5 {[%emt 0:02:50]} Qf8 {[%emt 0:05:19]} 16. d5 {[%emt 0:14:55]} exd5 {[%emt 0:02:28]} 17. exd5 {[%emt 0:00:05]} h6 {[%emt 0:01:10]} 18. Bxf6 {[%emt 0:01:24]} Bxf6 {[%emt 0:00:03]} 19. a3 {[%emt 0:00:01]} Bc8 {[%emt 0:00:13]} 20. Be4 {[%emt 0:01:46]} Na6 {[%emt 0:00:11]} 21. Rab1 {[%emt 0:00:54]} Bd7 {[%emt 0:01:17]} 22. Nb5 {[%emt 0:01:46]} Bxb5 {[%emt 0:01:36]} 23. cxb5 {[%emt 0:00:56]} Nc7 {[%emt 0:00:02]} 24. Bd3 {[%emt 0:00:41]} Qg7 {[%emt 0:00:55]} 25. a4 {[%emt 0:02:07]} Re8 {[%emt 0:00:12]} 26. Bc4 {[%emt 0:00:29]} Re7 {[%emt 0:00:35]} 27. Ng3 {[%emt 0:00:15]} Bc3 {[%emt 0:02:47]} 28. Qc2 {[%emt 0:01:34]} Rae8 {[%emt 0:01:45]} 29. Ne2 {[%emt 0:00:54]} Bb4 {[%emt 0:00:41]} 30. Ng3 {[%emt 0:00:28]} Bc3 {[%emt 0:05:16]} 31. Ne2 {[%emt 0:00:20]} Ba5 {[%emt 0:00:11]} 32. Ng3 {[%emt 0:00:08]} Rf8 {[%emt 0:00:11]} 33. Rd3 {[%emt 0:00:44]} Ne8 {[%emt 0:00:27]} 34. Ne4 {[%emt 0:00:15]} f5 {[%emt 0:01:39]} 35. Ng3 {[%emt 0:00:25]} Nf6 {[%emt 0:00:03]} 36. Ne2 {[%emt 0:00:20]} Nh5 {[%emt 0:00:17]} 37. Rdd1 {[%emt 0:01:17]} Qe5 {[%emt 0:00:55]} 38. Qb2 {[%emt 0:01:04]} Qe3+ {[%emt 0:00:22]} 39. Kf1 {[%emt 0:00:04]} Rfe8 {[%emt 0:00:18]} 40. Qc1 {[%emt 0:00:21]} Qe5 {[%emt 0:02:33]} 41. Qxh6 {[%emt 0:00:06]} Qxh2 {[%emt 0:04:55]} 42. Qxg6+ {[%emt 0:00:49]} Kh8 {[%emt 0:04:20]} 43. Kf2 {[%emt 0:01:56]} Rxe2+ {[%emt 0:02:21]} 44. Bxe2 {[%emt 0:00:03]} Qh4+ {[%emt 0:00:04]} 45. Kg1 {[%emt 0:00:59]} Rxe2 {[%emt 0:00:18]} 46. Qh6+ {[%emt 0:00:33]} Kg8 {[%emt 0:00:02]} 47. Qg6+ {[%emt 0:00:07]} Ng7 {[%emt 0:00:04]} 48. Rd2 Re3 0-1

[Event "Almaty Open 2019"]
[Site "Almaty"]
[Date "2019.10.14"]
[Round "9.13"]
[White "Sisabayev, Kuanysh"]
[Black "Kembayev, Bakhytzhan"]
[Result "*"]
[ECO "C28"]
[WhiteElo "2289"]
[BlackElo "2119"]
[Annotator "NA RC"]
[PlyCount "105"]
[EventDate "2019.10.07"]
[EventType "swiss"]
[EventCountry "KAZ"]
[SourceTitle "playchess.com"]
[Source "ChessBase"]
[SourceQuality "1"]
[TimeControl "5400+30"]

1. e4 {[%emt 0:05:32]} e5 {[%emt 0:10:10]} 2. Bc4 {[%emt 0:02:17]} Nc6 {[%emt 0:00:10]} 3. Nc3 {[%emt 0:00:26]} Nf6 {[%emt 0:00:16]} 4. d3 {[%emt 0:00:09]} Bc5 {[%emt 0:01:54]} 5. Be3 {[%emt 0:00:24]} d6 {[%emt 0:03:53]} 6. Bxc5 {[%emt 0:00:33]} dxc5 {[%emt 0:00:01]} 7. Nge2 {[%emt 0:00:21]} O-O {[%emt 0:08:34]} 8. O-O {[%emt 0:01:13]} Na5 {[%emt 0:00:15]} 9. Bb3 {[%emt 0:00:11]} Nxb3 {[%emt 0:02:43]} 10. axb3 {[%emt 0:00:09]} Nh5 {[%emt 0:00:19]} 11. f4 {[%emt 0:00:51]} Nxf4 {[%emt 0:00:31]} 12. Nxf4 {[%emt 0:00:10]} exf4 {[%emt 0:00:02]} 13. Rxf4 {[%emt 0:00:20]} f5 {[%emt 0:01:41]} 14. exf5 {[%emt 0:02:07]} Rxf5 {[%emt 0:00:38]} 15. Rxf5 {[%emt 0:00:13]} Bxf5 {[%emt 0:00:05]} 16. Qf3 {[%emt 0:00:08]} Qd4+ {[%emt 0:01:48]} 17. Kh1 {[%emt 0:00:15]} Rf8 {[%emt 0:00:41]} 18. Rf1 {[%emt 0:00:33]} c6 {[%emt 0:00:22]} 19. Ne4 {[%emt 0:02:31]} Qe5 {[%emt 0:04:22]} 20. Kg1 {[%emt 0:13:11]} Qe7 {[%emt 0:02:03]} 21. Nd2 {[%emt 0:06:34]} Rf6 {[%emt 0:01:01]} 22. Qg3 {[%emt 0:01:08]} h6 {[%emt 0:03:47]} 23. Nc4 {[%emt 0:03:40]} Kh7 {[%emt 0:06:09]} 24. h3 {[%emt 0:03:14]} Be6 {[%emt 0:09:29]} 25. Re1 {[%emt 0:04:10]} Rg6 {[%emt 0:00:46]} 26. Qf4 {[%emt 0:13:06]} Qd8 {[%emt 0:14:56]} 27. Rxe6 {[%emt 0:11:42]} Rxe6 {[%emt 0:00:17]} 28. Qf5+ {[%emt 0:00:07]} Rg6 {[%emt 0:00:03]} 29. Ne5 {[%emt 0:00:08]} Qf6 {[%emt 0:02:00]} 30. Qe4 {[%emt 0:00:19]} h5 {[%emt 0:00:40]} 31. h4 {[%emt 0:00:23]} Kh6 {[%emt 0:05:08]} 32. Nxg6 {[%emt 0:06:44]} Qxg6 {[%emt 0:00:06]} 33. Qe3+ {[%emt 0:00:07]} Kh7 {[%emt 0:00:16]} 34. Qxc5 {[%emt 0:00:07]} Qg4 {[%emt 0:01:48]} 35. Qf2 {[%emt 0:02:05]} Qd1+ {[%emt 0:01:01]} 36. Kh2 {[%emt 0:00:11]} Qg4 {[%emt 0:00:39]} 37. g3 {[%emt 0:01:47]} a6 {[%emt 0:01:24]} 38. Kg2 {[%emt 0:00:09]} Qd1 {[%emt 0:00:51]} 39. b4 {[%emt 0:00:18]} g6 {[%emt 0:00:30]} 40. Qf7+ {[%emt 0:01:59]} Kh6 {[%emt 0:00:30]} 41. Qf2 {[%emt 0:03:10]} Kh7 {[%emt 0:00:21]} 42. d4 {[%emt 0:02:05]} Kg8 {[%emt 0:00:38]} 43. c3 {[%emt 0:01:05]} Qd3 {[%emt 0:00:51]} 44. Kh2 {[%emt 0:00:26]} Kg7 {[%emt 0:00:32]} 45. Qg2 {[%emt 0:00:10]} Qd1 {[%emt 0:01:00]} 46. g4 {[%emt 0:00:53]} hxg4 {[%emt 0:00:12]} 47. Kg3 {[%emt 0:00:14]} Kh6 {[%emt 0:02:49]} 48. Qe4 {[%emt 0:02:37]} Qg1+ {[%emt 0:00:28]} 49. Kf4 {[%emt 0:00:13]} g3 {[%emt 0:00:37]} 50. Kg4 {[%emt 0:00:27]} Qf2 {[%emt 0:03:18]} 51. Qf3 {[%emt 0:02:54]} Kg7 {[%emt 0:00:11]} 52. b3 {[%emt 0:00:46]} Kh7 {[%emt 0:00:29]} 53. c4 {[%emt 0:04:34]} *

[Event "Almaty Open 2019"]
[Site "Almaty"]
[Date "2019.10.14"]
[Round "9.14"]
[White "Bizhigitov, Zhangir"]
[Black "Zhukenov, Aituar"]
[Result "0-1"]
[ECO "C00"]
[WhiteElo "2018"]
[BlackElo "2196"]
[Annotator "NA RC"]
[PlyCount "146"]
[EventDate "2019.10.07"]
[EventType "swiss"]
[EventCountry "KAZ"]
[SourceTitle "playchess.com"]
[Source "ChessBase"]
[SourceQuality "1"]
[TimeControl "5400+30"]

1. e4 {[%emt 0:00:00]} e6 {[%emt 0:00:00]} 2. Qe2 {[%emt 0:01:32]} c5 {[%emt 0:01:13]} 3. Nf3 {[%emt 0:00:45]} Nc6 {[%emt 0:01:06]} 4. g3 {[%emt 0:00:41]} g6 {[%emt 0:03:27]} 5. Bg2 {[%emt 0:00:32]} Bg7 {[%emt 0:00:09]} 6. c3 {[%emt 0:02:20]} Nge7 {[%emt 0:02:52]} 7. Na3 {[%emt 0:02:28]} O-O {[%emt 0:04:20]} 8. O-O {[%emt 0:04:56]} d5 {[%emt 0:15:03]} 9. d3 {[%emt 0:05:12]} d4 {[%emt 0:05:12]} 10. cxd4 {[%emt 0:17:53]} cxd4 {[%emt 0:11:17]} 11. e5 {[%emt 0:07:32]} b6 {[%emt 0:06:04]} 12. Nc4 {[%emt 0:06:13]} Ba6 {[%emt 0:06:10]} 13. b3 {[%emt 0:14:13]} b5 {[%emt 0:11:00]} 14. Nd6 {[%emt 0:05:40]} Nd5 {[%emt 0:02:52]} 15. Ne4 {[%emt 0:07:50]} Nc3 {[%emt 0:05:32]} 16. Nxc3 {[%emt 0:06:48]} dxc3 {[%emt 0:00:02]} 17. Be3 {[%emt 0:01:09]} b4 {[%emt 0:00:50]} 18. Rfd1 {[%emt 0:00:35]} Qa5 {[%emt 0:02:37]} 19. Bf4 {[%emt 0:05:04]} Rfd8 {[%emt 0:04:37]} 20. Qc2 {[%emt 0:03:25]} Rd5 {[%emt 0:03:10]} 21. d4 {[%emt 0:00:39]} Rad8 {[%emt 0:00:16]} 22. Be3 {[%emt 0:00:12]} Bb5 {[%emt 0:06:24]} 23. h4 {[%emt 0:01:01]} Qa6 {[%emt 0:00:50]} 24. a3 {[%emt 0:04:21]} Be2 {[%emt 0:04:29]} 25. Rdc1 {[%emt 0:00:09]} Bd3 {[%emt 0:01:45]} 26. Bf1 {[%emt 0:00:51]} Bxc2 {[%emt 0:00:49]} 27. Bxa6 {[%emt 0:00:03]} Be4 {[%emt 0:00:31]} 28. Ng5 {[%emt 0:01:08]} Nxd4 {[%emt 0:00:43]} 29. Nxe4 {[%emt 0:00:25]} Nxb3 30. axb4 {[%emt 0:00:44]} Nxa1 {[%emt 0:00:49]} 31. Nxc3 {[%emt 0:00:35]} Nb3 {[%emt 0:00:38]} 32. Rb1 {[%emt 0:00:15]} Nd2 {[%emt 0:00:12]} 33. Nxd5 {[%emt 0:00:23]} Nxb1 {[%emt 0:00:03]} 34. Ne7+ {[%emt 0:00:07]} Kh8 {[%emt 0:00:55]} 35. Nc6 {[%emt 0:00:43]} Rd1+ {[%emt 0:00:30]} 36. Kg2 {[%emt 0:00:06]} Nc3 {[%emt 0:00:43]} 37. Bxa7 {[%emt 0:00:47]} Rb1 {[%emt 0:00:32]} 38. Bd4 {[%emt 0:00:49]} Nd5 {[%emt 0:00:33]} 39. Bc5 {[%emt 0:00:33]} f6 {[%emt 0:00:22]} 40. Bd3 {[%emt 0:00:29]} Rb2 {[%emt 0:00:19]} 41. exf6 {[%emt 0:00:35]} Bxf6 {[%emt 0:00:03]} 42. b5 {[%emt 0:00:16]} Kg7 {[%emt 0:00:38]} 43. Kf1 {[%emt 0:00:52]} Kf7 {[%emt 0:00:07]} 44. Bc4 {[%emt 0:00:27]} Rc2 {[%emt 0:01:22]} 45. Bxd5 {[%emt 0:00:19]} Rxc5 {[%emt 0:00:46]} 46. b6 {[%emt 0:00:15]} Rb5 {[%emt 0:00:33]} 47. b7 {[%emt 0:00:16]} exd5 {[%emt 0:00:31]} 48. b8=Q {[%emt 0:00:04]} Rxb8 {[%emt 0:00:03]} 49. Nxb8 {[%emt 0:00:03]} Ke6 {[%emt 0:00:25]} 50. Na6 {[%emt 0:00:55]} Be7 {[%emt 0:00:29]} 51. Nc7+ {[%emt 0:00:28]} Ke5 {[%emt 0:00:17]} 52. Ke2 {[%emt 0:00:34]} Bd8 {[%emt 0:00:27]} 53. Nb5 {[%emt 0:00:22]} Bb6 {[%emt 0:00:16]} 54. Nc3 {[%emt 0:01:28]} Bd4 {[%emt 0:00:47]} 55. Nd1 {[%emt 0:00:33]} Ke4 {[%emt 0:00:57]} 56. f3+ {[%emt 0:00:30]} Ke5 {[%emt 0:00:15]} 57. Kd3 {[%emt 0:00:23]} Bg1 {[%emt 0:00:28]} 58. Ne3 {[%emt 0:00:52]} h5 {[%emt 0:00:50]} 59. g4 {[%emt 0:00:30]} Bxe3 {[%emt 0:00:45]} 60. gxh5 {[%emt 0:00:37]} Bh6 {[%emt 0:00:18]} 61. hxg6 {[%emt 0:00:10]} Bg7 {[%emt 0:00:29]} 62. h5 {[%emt 0:00:07]} Kf5 {[%emt 0:00:11]} 63. f4 {[%emt 0:00:24]} Bf6 {[%emt 0:00:56]} 64. Ke3 {[%emt 0:00:28]} Bg7 {[%emt 0:00:26]} 65. Kd3 {[%emt 0:00:47]} Ba1 {[%emt 0:00:38]} 66. Ke3 {[%emt 0:00:26]} Kf6 {[%emt 0:00:11]} 67. Kf3 {[%emt 0:00:52]} Kg7 {[%emt 0:00:37]} 68. Kg4 {[%emt 0:00:26]} Kh6 {[%emt 0:00:21]} 69. Kf5 {[%emt 0:00:46]} Bg7 {[%emt 0:00:18]} 70. Kg4 {[%emt 0:00:21]} d4 {[%emt 0:00:24]} 71. f5 {[%emt 0:00:15]} Be5 {[%emt 0:00:10]} 72. Kf3 {[%emt 0:00:51]} Kxh5 {[%emt 0:00:09]} 73. Ke4 {[%emt 0:00:03]} Bg7 {[%emt 0:00:08]} 0-1

[Event "Almaty Open 2019"]
[Site "Almaty"]
[Date "2019.10.14"]
[Round "9.15"]
[White "Malygin, Vladislav"]
[Black "Bekturov, Tamerlan"]
[Result "*"]
[ECO "B12"]
[WhiteElo "1941"]
[BlackElo "2226"]
[Annotator "NA RC"]
[PlyCount "142"]
[EventDate "2019.10.07"]
[EventType "swiss"]
[EventCountry "KAZ"]
[SourceTitle "playchess.com"]
[Source "ChessBase"]
[SourceQuality "1"]
[TimeControl "5400+30"]

1. e4 {[%emt 0:00:00]} c6 {[%emt 0:00:09]} 2. d4 {[%emt 0:00:00]} d5 {[%emt 0:00:05]} 3. Nd2 {[%emt 0:01:54]} g6 {[%emt 0:00:07]} 4. c3 {[%emt 0:02:08]} Bg7 {[%emt 0:00:40]} 5. Ngf3 {[%emt 0:00:49]} Nh6 {[%emt 0:01:24]} 6. Bd3 {[%emt 0:01:42]} O-O {[%emt 0:00:23]} 7. O-O {[%emt 0:00:28]} f6 {[%emt 0:00:50]} 8. Re1 {[%emt 0:03:51]} Nf7 {[%emt 0:01:18]} 9. c4 {[%emt 0:05:00]} e6 {[%emt 0:13:00]} 10. Qb3 {[%emt 0:01:25]} b6 {[%emt 0:02:32]} 11. Nf1 {[%emt 0:13:38]} Bb7 {[%emt 0:04:29]} 12. exd5 {[%emt 0:02:21]} exd5 {[%emt 0:06:44]} 13. Bf4 {[%emt 0:01:00]} a5 {[%emt 0:17:52]} 14. Rac1 {[%emt 0:09:31]} a4 {[%emt 0:15:14]} 15. Qa3 {[%emt 0:01:31]} Re8 {[%emt 0:06:05]} 16. Bc7 {[%emt 0:04:02]} Rxe1 {[%emt 0:07:29]} 17. Rxe1 {[%emt 0:00:23]} Qc8 {[%emt 0:04:48]} 18. cxd5 {[%emt 0:21:39]} Bf8 {[%emt 0:02:06]} 19. d6 {[%emt 0:00:44]} Nd7 {[%emt 0:00:06]} 20. Qc3 {[%emt 0:04:40]} Nxd6 {[%emt 0:01:27]} 21. Bxd6 {[%emt 0:00:46]} Bxd6 {[%emt 0:00:07]} 22. Qc4+ {[%emt 0:00:17]} Kg7 {[%emt 0:01:28]} 23. Qe6 {[%emt 0:01:09]} Qc7 {[%emt 0:00:56]} 24. Ng3 {[%emt 0:02:06]} Nf8 {[%emt 0:00:58]} 25. Qg4 {[%emt 0:02:29]} Kh8 {[%emt 0:00:15]} 26. Qh4 {[%emt 0:00:57]} Qg7 {[%emt 0:01:49]} 27. Ne4 {[%emt 0:01:48]} Be7 {[%emt 0:00:14]} 28. Qg3 {[%emt 0:00:29]} Bb4 {[%emt 0:01:13]} 29. Rc1 {[%emt 0:02:22]} a3 {[%emt 0:02:47]} 30. b3 {[%emt 0:00:55]} Rd8 {[%emt 0:00:47]} 31. Qf4 {[%emt 0:01:05]} Ne6 {[%emt 0:01:32]} 32. Qh4 {[%emt 0:07:19]} Be7 {[%emt 0:01:23]} 33. Bc4 {[%emt 0:04:28]} Nxd4 {[%emt 0:02:27]} 34. Nxd4 {[%emt 0:00:36]} Rxd4 {[%emt 0:00:07]} 35. Qf4 {[%emt 0:00:03]} Bf8 {[%emt 0:02:00]} 36. Qe3 {[%emt 0:01:16]} c5 {[%emt 0:00:19]} 37. f3 {[%emt 0:01:53]} Bxe4 {[%emt 0:01:15]} 38. fxe4 {[%emt 0:00:10]} Qh6 {[%emt 0:00:43]} 39. Qxh6 {[%emt 0:01:39]} Bxh6 {[%emt 0:00:05]} 40. Re1 {[%emt 0:00:47]} Rd2 {[%emt 0:00:46]} 41. Re2 {[%emt 0:00:04]} Rd1+ {[%emt 0:01:00]} 42. Kf2 {[%emt 0:00:05]} Ra1 {[%emt 0:00:44]} 43. Kf3 {[%emt 0:01:22]} Rd1 {[%emt 0:00:47]} 44. e5 {[%emt 0:00:29]} fxe5 {[%emt 0:00:44]} 45. Rxe5 {[%emt 0:00:10]} Bc1 {[%emt 0:00:40]} 46. b4 {[%emt 0:00:55]} cxb4 {[%emt 0:00:30]} 47. Rb5 {[%emt 0:00:14]} Rd4 {[%emt 0:00:34]} 48. Be6 {[%emt 0:00:46]} Rd6 {[%emt 0:00:07]} 49. Bc4 {[%emt 0:00:18]} Bd2 {[%emt 0:00:26]} 50. Ke4 {[%emt 0:00:26]} Bc3 {[%emt 0:00:50]} 51. Rd5 {[%emt 0:00:31]} Rc6 {[%emt 0:00:18]} 52. Kd3 {[%emt 0:00:26]} Kg7 {[%emt 0:00:24]} 53. g4 {[%emt 0:00:48]} h6 {[%emt 0:00:37]} 54. h4 {[%emt 0:00:10]} Rf6 {[%emt 0:00:40]} 55. h5 {[%emt 0:00:44]} g5 {[%emt 0:00:27]} 56. Rd7+ {[%emt 0:00:24]} Kf8 {[%emt 0:00:07]} 57. Rh7 {[%emt 0:00:46]} Rd6+ {[%emt 0:00:23]} 58. Ke3 {[%emt 0:00:30]} Bg7 {[%emt 0:00:07]} 59. Bb3 {[%emt 0:00:27]} Rf6 {[%emt 0:00:33]} 60. Bc4 {[%emt 0:00:34]} Rf4 {[%emt 0:00:38]} 61. Be6 {[%emt 0:00:12]} b3 {[%emt 0:00:31]} 62. Bxb3 {[%emt 0:00:04]} Rxg4 {[%emt 0:00:07]} 63. Kf3 {[%emt 0:00:38]} Rf4+ {[%emt 0:00:17]} 64. Ke3 {[%emt 0:00:15]} b5 {[%emt 0:00:10]} 65. Bd5 {[%emt 0:00:11]} b4 {[%emt 0:00:18]} 66. Bb3 {[%emt 0:00:14]} Rh4 {[%emt 0:00:05]} 67. Be6 {[%emt 0:01:11]} b3 {[%emt 0:00:31]} 68. Bxb3 {[%emt 0:00:21]} Rh3+ {[%emt 0:00:06]} 69. Ke4 {[%emt 0:00:50]} Rxb3 {[%emt 0:00:12]} 70. Kf5 {[%emt 0:00:17]} Rf3+ {[%emt 0:00:10]} 71. Kg6 {[%emt 0:01:09]} Rf6# {[%emt 0:00:06]} *